[Event "*** Titled Tuesday Blitz"]
[Site "Chess.com"]
[Date "2020.04.14"]
[Round "9"]
[White "CaspiIsrael"]
[Black "stanyga"]
[Result "0-1"]
[WhiteElo "2550"]
[BlackElo "2685"]
[TimeControl "180+1"]
[EndTime "11:43:27 PDT"]
[Termination "stanyga won by resignation"]

1. e4 {[%clk 0:03:00.9]} 1... g6 {[%clk 0:02:59.6]} 2. d4 {[%clk 0:03:00.3]}
2... Bg7 {[%clk 0:03:00.5]} 3. Nf3 {[%clk 0:03:00.8]} 3... d6 {[%clk 0:03:00.2]}
4. Be2 {[%clk 0:03:00.5]} 4... Nf6 {[%clk 0:03:00.5]} 5. Nc3 {[%clk 0:03:00.4]}
5... c6 {[%clk 0:03:01]} 6. a4 {[%clk 0:02:54.3]} 6... O-O {[%clk 0:03:00.8]} 7.
O-O {[%clk 0:02:53]} 7... a5 {[%clk 0:03:00.9]} 8. h3 {[%clk 0:02:29.4]} 8...
Na6 {[%clk 0:03:00.4]} 9. Be3 {[%clk 0:02:27.2]} 9... Nb4 {[%clk 0:02:59.5]} 10.
Nd2 {[%clk 0:02:24.9]} 10... Qc7 {[%clk 0:02:51.2]} 11. f4 {[%clk 0:02:16.5]}
11... e5 {[%clk 0:02:50.4]} 12. Nc4 {[%clk 0:02:15.3]} 12... exd4 {[%clk
0:02:46.7]} 13. Bxd4 {[%clk 0:02:16.2]} 13... d5 {[%clk 0:02:32.8]} 14. Nb6
{[%clk 0:01:49.8]} 14... Rb8 {[%clk 0:02:31.8]} 15. Nxc8 {[%clk 0:01:40.6]}
15... Rbxc8 {[%clk 0:02:27.7]} 16. e5 {[%clk 0:01:38.5]} 16... Nd7 {[%clk
0:02:25.3]} 17. Bg4 {[%clk 0:01:38.7]} 17... Rce8 {[%clk 0:02:20.2]} 18. Ne2
{[%clk 0:01:35.5]} 18... Na6 {[%clk 0:01:58.7]} 19. c3 {[%clk 0:01:33.1]} 19...
Nac5 {[%clk 0:01:57.2]} 20. Ng3 {[%clk 0:01:26.6]} 20... f6 {[%clk 0:01:47.4]}
21. exf6 {[%clk 0:01:19.1]} 21... Bxf6 {[%clk 0:01:45.9]} 22. Bxf6 {[%clk
0:01:17.4]} 22... Nxf6 {[%clk 0:01:44.6]} 23. b4 {[%clk 0:00:49.8]} 23... Nce4
{[%clk 0:01:37.3]} 24. Nxe4 {[%clk 0:00:48.4]} 24... Nxe4 {[%clk 0:01:36.4]} 25.
Qd4 {[%clk 0:00:47.4]} 25... axb4 {[%clk 0:01:30.3]} 26. cxb4 {[%clk 0:00:46.1]}
26... Rxf4 {[%clk 0:01:30]} 27. Rxf4 {[%clk 0:00:45.1]} 27... Qxf4 {[%clk
0:01:30.9]} 28. Rf1 {[%clk 0:00:45.1]} 28... Qe5 {[%clk 0:01:25.6]} 29. Qb6
{[%clk 0:00:43.2]} 29... Nd6 {[%clk 0:01:15.4]} 30. Qc7 {[%clk 0:00:38.3]} 30...
Qe7 {[%clk 0:01:12]} 31. Qb6 {[%clk 0:00:34.9]} 31... Qe3+ {[%clk 0:01:09.8]}
32. Qxe3 {[%clk 0:00:33.5]} 32... Rxe3 {[%clk 0:01:10.7]} 33. Rf6 {[%clk
0:00:31]} 33... Nf5 {[%clk 0:00:35.8]} 34. Bxf5 {[%clk 0:00:29.7]} 34... gxf5
{[%clk 0:00:36.1]} 35. Rxf5 {[%clk 0:00:22.3]} 35... Re4 {[%clk 0:00:36]} 36. b5
{[%clk 0:00:18.4]} 36... Rxa4 {[%clk 0:00:35.4]} 37. bxc6 {[%clk 0:00:18.8]}
37... bxc6 {[%clk 0:00:35.6]} 38. Rf6 {[%clk 0:00:19]} 38... c5 {[%clk
0:00:32.4]} 39. Rc6 {[%clk 0:00:17.8]} 39... c4 {[%clk 0:00:24.9]} 40. Rd6
{[%clk 0:00:13.8]} 40... Ra5 {[%clk 0:00:24.4]} 41. Kf2 {[%clk 0:00:13.6]} 41...
c3 {[%clk 0:00:24]} 42. Ke3 {[%clk 0:00:13.4]} 42... Rc5 {[%clk 0:00:23.6]} 43.
Kd4 {[%clk 0:00:04.8]} 43... c2 {[%clk 0:00:23.6]} 44. Kxc5 {[%clk 0:00:05.1]}
44... c1=Q+ {[%clk 0:00:23.2]} 45. Kxd5 {[%clk 0:00:06]} 45... Qd2+ {[%clk
0:00:23.1]} 46. Kc4 {[%clk 0:00:04]} 46... Qxd6 {[%clk 0:00:22.3]} 0-1

[Event "*** Titled Tuesday Blitz"]
[Site "Chess.com"]
[Date "2020.04.14"]
[Round "9"]
[White "BillCoe"]
[Black "KaspMagAlpha"]
[Result "1-0"]
[WhiteElo "2067"]
[BlackElo "2227"]
[TimeControl "180+1"]
[EndTime "11:43:28 PDT"]
[Termination "BillCoe won on time"]

1. e4 {[%clk 0:03:00.1]} 1... c5 {[%clk 0:02:59.5]} 2. Nf3 {[%clk 0:03:00]} 2...
e6 {[%clk 0:02:59.3]} 3. d4 {[%clk 0:02:55.6]} 3... cxd4 {[%clk 0:02:55.7]} 4.
Nxd4 {[%clk 0:02:56]} 4... a6 {[%clk 0:02:54.9]} 5. c4 {[%clk 0:02:52.8]} 5...
Nf6 {[%clk 0:02:54.2]} 6. Nc3 {[%clk 0:02:52.5]} 6... Bb4 {[%clk 0:02:53.5]} 7.
Bd3 {[%clk 0:02:52.2]} 7... Qc7 {[%clk 0:02:16.7]} 8. O-O {[%clk 0:02:46.9]}
8... O-O {[%clk 0:02:14]} 9. Be3 {[%clk 0:02:39]} 9... d6 {[%clk 0:02:06.7]} 10.
f4 {[%clk 0:02:33.5]} 10... Nbd7 {[%clk 0:02:06]} 11. Nb3 {[%clk 0:02:11.8]}
11... Nb6 {[%clk 0:02:01]} 12. Qe2 {[%clk 0:02:10.1]} 12... Bd7 {[%clk
0:01:59.6]} 13. Rac1 {[%clk 0:02:07.4]} 13... Rac8 {[%clk 0:01:58.8]} 14. a3
{[%clk 0:02:04.4]} 14... Bc5 {[%clk 0:01:56]} 15. Nxc5 {[%clk 0:02:01.2]} 15...
dxc5 {[%clk 0:01:55.4]} 16. e5 {[%clk 0:01:49.5]} 16... Ne8 {[%clk 0:01:53.4]}
17. Ne4 {[%clk 0:01:48.3]} 17... f6 {[%clk 0:01:32.3]} 18. Qh5 {[%clk 0:01:36]}
18... g6 {[%clk 0:01:29.9]} 19. Qh6 {[%clk 0:01:14.3]} 19... Bc6 {[%clk
0:01:09.8]} 20. exf6 {[%clk 0:01:03.5]} 20... Bxe4 {[%clk 0:01:04.4]} 21. Bxe4
{[%clk 0:00:58.1]} 21... Nxf6 {[%clk 0:01:04.4]} 22. Bf3 {[%clk 0:00:55.3]}
22... Nbd7 {[%clk 0:00:54.5]} 23. b4 {[%clk 0:00:49.1]} 23... b6 {[%clk
0:00:52.9]} 24. Rfd1 {[%clk 0:00:43.9]} 24... e5 {[%clk 0:00:45.2]} 25. f5
{[%clk 0:00:41.1]} 25... gxf5 {[%clk 0:00:34.1]} 26. Qg5+ {[%clk 0:00:40.9]}
26... Kh8 {[%clk 0:00:33.6]} 27. Qxf5 {[%clk 0:00:41]} 27... Rg8 {[%clk
0:00:28.6]} 28. Bd5 {[%clk 0:00:35.9]} 28... Nxd5 {[%clk 0:00:24.3]} 29. cxd5
{[%clk 0:00:27.1]} 29... Rcf8 {[%clk 0:00:16.7]} 30. Qe6 {[%clk 0:00:23.2]}
30... Rf6 {[%clk 0:00:15.4]} 31. Qh3 {[%clk 0:00:20.5]} 31... Rfg6 {[%clk
0:00:15.2]} 32. Rd2 {[%clk 0:00:17.8]} 32... Nf6 {[%clk 0:00:14.1]} 33. bxc5
{[%clk 0:00:15.5]} 33... Ne4 {[%clk 0:00:09.2]} 34. Rdc2 {[%clk 0:00:11.3]}
34... bxc5 {[%clk 0:00:08.7]} 35. Bxc5 {[%clk 0:00:10]} 35... Nxc5 {[%clk
0:00:06.9]} 36. Rxc5 {[%clk 0:00:09.9]} 36... Qb6 {[%clk 0:00:07.1]} 37. Kh1
{[%clk 0:00:06.8]} 37... Qb2 {[%clk 0:00:06]} 38. R5c2 {[%clk 0:00:05.2]} 38...
Qd4 {[%clk 0:00:05.6]} 39. Rc7 {[%clk 0:00:04.4]} 1-0

[Event "*** Titled Tuesday Blitz"]
[Site "Chess.com"]
[Date "2020.04.14"]
[Round "9"]
[White "IMUffeVinther-Schou"]
[Black "Frogo47"]
[Result "0-1"]
[WhiteElo "2340"]
[BlackElo "2527"]
[TimeControl "180+1"]
[EndTime "11:43:29 PDT"]
[Termination "Frogo47 won on time"]

1. e4 {[%clk 0:03:00.9]} 1... e5 {[%clk 0:02:59]} 2. Nf3 {[%clk 0:03:00.3]} 2...
Nc6 {[%clk 0:02:59.2]} 3. Nc3 {[%clk 0:02:59.7]} 3... Nf6 {[%clk 0:02:58.5]} 4.
Bb5 {[%clk 0:02:59]} 4... Bc5 {[%clk 0:02:58.1]} 5. O-O {[%clk 0:02:50.7]} 5...
O-O {[%clk 0:02:51.1]} 6. Nxe5 {[%clk 0:02:36.9]} 6... Nxe5 {[%clk 0:02:50.7]}
7. d4 {[%clk 0:02:35.9]} 7... Bd6 {[%clk 0:02:51.1]} 8. f4 {[%clk 0:02:29.1]}
8... Neg4 {[%clk 0:02:51]} 9. e5 {[%clk 0:02:28.2]} 9... Be7 {[%clk 0:02:51.1]}
10. Bd3 {[%clk 0:02:22.1]} 10... d6 {[%clk 0:02:49.2]} 11. exf6 {[%clk 0:02:21]}
11... Nxf6 {[%clk 0:02:48.5]} 12. f5 {[%clk 0:02:19.2]} 12... d5 {[%clk
0:02:48.4]} 13. Qf3 {[%clk 0:02:04.4]} 13... c6 {[%clk 0:02:47.9]} 14. Bg5
{[%clk 0:01:56.1]} 14... h6 {[%clk 0:02:43.4]} 15. Bf4 {[%clk 0:01:54]} 15...
Qb6 {[%clk 0:02:27]} 16. Ne2 {[%clk 0:01:52.8]} 16... Qxb2 {[%clk 0:02:20.7]}
17. g4 {[%clk 0:01:30.2]} 17... Nh7 {[%clk 0:02:18.8]} 18. f6 {[%clk 0:01:24.8]}
18... Bxf6 {[%clk 0:02:15.5]} 19. Rfb1 {[%clk 0:01:23.1]} 19... Bxd4+ {[%clk
0:02:08]} 20. Kh1 {[%clk 0:01:22.1]} 20... Qxa1 {[%clk 0:02:07.9]} 21. Rxa1
{[%clk 0:01:21.2]} 21... Bxa1 {[%clk 0:02:08.8]} 22. c3 {[%clk 0:01:18.2]} 22...
Re8 {[%clk 0:01:55.6]} 23. Qf1 {[%clk 0:01:10.7]} 23... Bb2 {[%clk 0:01:54.4]}
24. Qb1 {[%clk 0:01:08.5]} 24... Nf6 {[%clk 0:01:46.4]} 25. Qxb2 {[%clk
0:01:05.5]} 25... Nxg4 {[%clk 0:01:46.5]} 26. Kg2 {[%clk 0:00:59.5]} 26... b5
{[%clk 0:01:42.4]} 27. Nd4 {[%clk 0:00:56.1]} 27... Bd7 {[%clk 0:01:41.8]} 28.
Bf5 {[%clk 0:00:52.8]} 28... Bxf5 {[%clk 0:01:38.7]} 29. Nxf5 {[%clk 0:00:52.2]}
29... Re4 {[%clk 0:01:38.7]} 30. Kf3 {[%clk 0:00:50]} 30... Ne5+ {[%clk
0:01:11.5]} 31. Kg3 {[%clk 0:00:49.3]} 31... Rxf4 {[%clk 0:01:08]} 32. Ne7+
{[%clk 0:00:48.5]} 32... Kh8 {[%clk 0:01:04.9]} 33. Qa3 {[%clk 0:00:44.2]} 33...
Rf6 {[%clk 0:00:55.9]} 34. Qc5 {[%clk 0:00:38.1]} 34... Re8 {[%clk 0:00:53.2]}
35. Qxa7 {[%clk 0:00:24.3]} 35... Ng6 {[%clk 0:00:50.7]} 36. Nxg6+ {[%clk
0:00:16]} 36... Rxg6+ {[%clk 0:00:50.4]} 37. Kf3 {[%clk 0:00:16]} 37... Ree6
{[%clk 0:00:49.4]} 38. h4 {[%clk 0:00:13.2]} 38... h5 {[%clk 0:00:49.1]} 39. a4
{[%clk 0:00:11.9]} 39... bxa4 {[%clk 0:00:48.3]} 40. Qa8+ {[%clk 0:00:11.3]}
40... Kh7 {[%clk 0:00:48.3]} 41. Qxa4 {[%clk 0:00:12]} 41... Re4 {[%clk
0:00:47.4]} 42. Qa7 {[%clk 0:00:10.6]} 42... Rf6+ {[%clk 0:00:47]} 43. Kg3
{[%clk 0:00:09.7]} 43... Rg4+ {[%clk 0:00:47.9]} 44. Kh3 {[%clk 0:00:09.4]}
44... Rff4 {[%clk 0:00:43.1]} 45. Qe3 {[%clk 0:00:07.1]} 45... Rxh4+ {[%clk
0:00:42.7]} 46. Kg3 {[%clk 0:00:06.3]} 46... Rhg4+ {[%clk 0:00:42.9]} 47. Kh3
{[%clk 0:00:05.8]} 47... h4 {[%clk 0:00:43]} 48. Qe5 {[%clk 0:00:05]} 48... g6
{[%clk 0:00:38.3]} 49. c4 {[%clk 0:00:02.8]} 49... dxc4 {[%clk 0:00:37.4]} 0-1

[Event "*** Titled Tuesday Blitz"]
[Site "Chess.com"]
[Date "2020.04.14"]
[Round "9"]
[White "Sunnika"]
[Black "UCantHandleDenker"]
[Result "0-1"]
[WhiteElo "2374"]
[BlackElo "2572"]
[TimeControl "180+1"]
[EndTime "11:43:30 PDT"]
[Termination "UCantHandleDenker won on time"]

1. d4 {[%clk 0:03:00.9]} 1... Nf6 {[%clk 0:02:58.7]} 2. Nf3 {[%clk 0:03:01.3]}
2... g6 {[%clk 0:02:58.1]} 3. c4 {[%clk 0:03:01.7]} 3... Bg7 {[%clk 0:02:56.1]}
4. g3 {[%clk 0:03:02.2]} 4... c5 {[%clk 0:02:55.4]} 5. d5 {[%clk 0:03:00.3]}
5... d6 {[%clk 0:02:55.1]} 6. Nc3 {[%clk 0:02:59.5]} 6... O-O {[%clk 0:02:55.6]}
7. Bg2 {[%clk 0:02:59]} 7... e6 {[%clk 0:02:56.2]} 8. O-O {[%clk 0:02:57.8]}
8... exd5 {[%clk 0:02:56.4]} 9. cxd5 {[%clk 0:02:57.7]} 9... a6 {[%clk
0:02:57.1]} 10. a4 {[%clk 0:02:56.2]} 10... Nbd7 {[%clk 0:02:54.1]} 11. Bf4
{[%clk 0:02:51.1]} 11... Qc7 {[%clk 0:02:52.7]} 12. e4 {[%clk 0:02:37.5]} 12...
Nh5 {[%clk 0:02:41.6]} 13. Be3 {[%clk 0:02:22.7]} 13... Re8 {[%clk 0:02:36.7]}
14. Nd2 {[%clk 0:02:16]} 14... Rb8 {[%clk 0:02:34.1]} 15. Qe2 {[%clk 0:02:10]}
15... Nhf6 {[%clk 0:02:20]} 16. h3 {[%clk 0:01:58.8]} 16... h5 {[%clk
0:02:13.9]} 17. Kh2 {[%clk 0:01:45.6]} 17... b6 {[%clk 0:02:08.6]} 18. f4 {[%clk
0:01:36.8]} 18... Bb7 {[%clk 0:01:53.7]} 19. Nc4 {[%clk 0:01:24.5]} 19... Ba8
{[%clk 0:01:48.4]} 20. e5 {[%clk 0:01:19.2]} 20... dxe5 {[%clk 0:01:44.9]} 21.
d6 {[%clk 0:01:18.7]} 21... Qa7 {[%clk 0:01:40]} 22. f5 {[%clk 0:01:07.3]} 22...
Bxg2 {[%clk 0:01:20]} 23. Qxg2 {[%clk 0:01:08.2]} 23... Qb7 {[%clk 0:01:17.7]}
24. Qc2 {[%clk 0:00:58.3]} 24... Kh7 {[%clk 0:00:59.1]} 25. fxg6+ {[%clk
0:00:52.7]} 25... fxg6 {[%clk 0:01:00]} 26. Nd2 {[%clk 0:00:25]} 26... Re6
{[%clk 0:00:58.3]} 27. Nde4 {[%clk 0:00:24]} 27... Kg8 {[%clk 0:00:26.7]} 28.
Qb3 {[%clk 0:00:20.2]} 28... Nf8 {[%clk 0:00:16.4]} 29. Nxf6+ {[%clk 0:00:19.2]}
29... Bxf6 {[%clk 0:00:14.8]} 30. Rxf6 {[%clk 0:00:18.1]} 30... c4 {[%clk
0:00:10.5]} 31. Qxc4 {[%clk 0:00:17.5]} 31... Rc8 {[%clk 0:00:11.1]} 32. Qb3
{[%clk 0:00:15.3]} 32... Re8 {[%clk 0:00:07.8]} 33. Rxe6 {[%clk 0:00:14.3]}
33... Rxe6 {[%clk 0:00:08.7]} 34. Qd5 {[%clk 0:00:13.9]} 34... Qd7 {[%clk
0:00:08.5]} 35. Rd1 {[%clk 0:00:12.1]} 35... Kg7 {[%clk 0:00:08.9]} 36. Ne4
{[%clk 0:00:10.7]} 36... Nh7 {[%clk 0:00:07.4]} 37. Bxb6 {[%clk 0:00:08.9]}
37... h4 {[%clk 0:00:07.9]} 38. g4 {[%clk 0:00:08.2]} 38... Qf7 {[%clk
0:00:08.3]} 39. d7 {[%clk 0:00:06.9]} 39... Qf4+ {[%clk 0:00:06.5]} 40. Kg2
{[%clk 0:00:06.3]} 40... Ng5 {[%clk 0:00:05.7]} 41. Nxg5 {[%clk 0:00:05.8]}
41... Qg3+ {[%clk 0:00:05.5]} 42. Kf1 {[%clk 0:00:05.4]} 42... Rf6+ {[%clk
0:00:05.9]} 43. Ke2 {[%clk 0:00:01.6]} 43... Qh2+ {[%clk 0:00:06.3]} 44. Kd3
{[%clk 0:00:01.3]} 44... Qg3+ {[%clk 0:00:06.7]} 45. Kc4 {[%clk 0:00:01.4]}
45... Rf4+ {[%clk 0:00:06.5]} 46. Kc5 {[%clk 0:00:01.6]} 46... Qf2+ {[%clk
0:00:06.4]} 47. Kd6 {[%clk 0:00:01.7]} 47... Qxb6+ {[%clk 0:00:06.3]} 48. Qc6
{[%clk 0:00:01.8]} 48... Qb4+ {[%clk 0:00:05.3]} 0-1

[Event "*** Titled Tuesday Blitz"]
[Site "Chess.com"]
[Date "2020.04.14"]
[Round "9"]
[White "BogdanDeac"]
[Black "Orest_Vovk"]
[Result "1-0"]
[WhiteElo "2751"]
[BlackElo "2521"]
[TimeControl "180+1"]
[EndTime "11:43:31 PDT"]
[Termination "BogdanDeac won on time"]

1. Nf3 {[%clk 0:03:00.9]} 1... h6 {[%clk 0:02:59.4]} 2. e4 {[%clk 0:02:58.2]}
2... g5 {[%clk 0:02:59.4]} 3. d4 {[%clk 0:02:57.9]} 3... Bg7 {[%clk 0:02:59.2]}
4. c3 {[%clk 0:02:57.4]} 4... d5 {[%clk 0:02:56.8]} 5. exd5 {[%clk 0:02:53.7]}
5... Qxd5 {[%clk 0:02:56.3]} 6. Na3 {[%clk 0:02:53.8]} 6... c5 {[%clk 0:02:43]}
7. Bc4 {[%clk 0:02:48.5]} 7... Qe4+ {[%clk 0:02:42.3]} 8. Be3 {[%clk 0:02:29.1]}
8... cxd4 {[%clk 0:02:42.1]} 9. Nb5 {[%clk 0:02:28.5]} 9... Na6 {[%clk
0:02:26.6]} 10. cxd4 {[%clk 0:02:16]} 10... Nf6 {[%clk 0:02:17.3]} 11. Nc3
{[%clk 0:02:13.9]} 11... Qh7 {[%clk 0:02:00.9]} 12. Qa4+ {[%clk 0:02:01.8]}
12... Bd7 {[%clk 0:01:51.1]} 13. Qb3 {[%clk 0:02:01.5]} 13... Rd8 {[%clk
0:01:02.4]} 14. Bxf7+ {[%clk 0:01:49.3]} 14... Kf8 {[%clk 0:01:00.3]} 15. Ne5
{[%clk 0:01:48.6]} 15... Bf5 {[%clk 0:00:53.5]} 16. Qxb7 {[%clk 0:01:13.3]}
16... Nd7 {[%clk 0:00:47.3]} 17. Bb3 {[%clk 0:00:35.7]} 17... Nac5 {[%clk
0:00:24.9]} 18. Nxd7+ {[%clk 0:00:32.1]} 18... Nxd7 {[%clk 0:00:24.6]} 19. Qc7
{[%clk 0:00:30.7]} 19... Ke8 {[%clk 0:00:12.8]} 20. O-O {[%clk 0:00:27.7]} 20...
Qg6 {[%clk 0:00:11.3]} 21. Rfe1 {[%clk 0:00:26.3]} 21... Qb6 {[%clk 0:00:11.3]}
22. Nd5 {[%clk 0:00:25.3]} 22... Qxc7 {[%clk 0:00:09.9]} 23. Nxc7+ {[%clk
0:00:25.2]} 23... Kf8 {[%clk 0:00:10.5]} 24. Be6 {[%clk 0:00:23.7]} 24... Bg6
{[%clk 0:00:08]} 25. Bh3 {[%clk 0:00:13.8]} 25... Kg8 {[%clk 0:00:05.3]} 26. Ne6
{[%clk 0:00:13.2]} 26... Kh7 {[%clk 0:00:03.8]} 27. Nxd8 {[%clk 0:00:12.8]}
27... Rxd8 {[%clk 0:00:04.7]} 28. Bxd7 {[%clk 0:00:11]} 28... Rxd7 {[%clk
0:00:04.7]} 29. Red1 {[%clk 0:00:11.1]} 29... Be4 {[%clk 0:00:03.5]} 30. Rac1
{[%clk 0:00:10.4]} 30... Bd5 {[%clk 0:00:03.9]} 31. b3 {[%clk 0:00:10.6]} 31...
Bf6 {[%clk 0:00:03.8]} 32. Rc5 {[%clk 0:00:10.5]} 32... Be4 {[%clk 0:00:03.5]}
33. f3 {[%clk 0:00:09.7]} 33... Bg6 {[%clk 0:00:03.2]} 34. Kf2 {[%clk
0:00:09.8]} 34... Rb7 {[%clk 0:00:03.3]} 35. Rdc1 {[%clk 0:00:09.4]} 35... Rb4
{[%clk 0:00:02.4]} 36. R5c4 {[%clk 0:00:09]} 36... Rb6 {[%clk 0:00:02.6]} 37.
Rc6 {[%clk 0:00:09.1]} 37... Rb5 {[%clk 0:00:03.1]} 38. R1c5 {[%clk 0:00:09]}
38... Rb4 {[%clk 0:00:03.1]} 39. Rc4 {[%clk 0:00:09]} 39... Rb5 {[%clk
0:00:03.2]} 40. Rc7 {[%clk 0:00:09.5]} 40... a5 {[%clk 0:00:02.9]} 41. R4c6
{[%clk 0:00:09.5]} 41... a4 {[%clk 0:00:02.8]} 42. Rxf6 {[%clk 0:00:09.1]} 42...
axb3 {[%clk 0:00:03.3]} 43. Rxe7+ {[%clk 0:00:07.3]} 43... Bf7 {[%clk
0:00:03.3]} 44. Rexf7+ {[%clk 0:00:06.8]} 44... Kg8 {[%clk 0:00:04]} 45. axb3
{[%clk 0:00:07]} 45... Rxb3 {[%clk 0:00:04.7]} 46. d5 {[%clk 0:00:07.2]} 46...
Rb2+ {[%clk 0:00:05.3]} 47. Kg3 {[%clk 0:00:07.4]} 47... Rb7 {[%clk 0:00:05.6]}
48. Rxb7 {[%clk 0:00:06.5]} 1-0

[Event "*** Titled Tuesday Blitz"]
[Site "Chess.com"]
[Date "2020.04.14"]
[Round "9"]
[White "crazy_but_lazy"]
[Black "vovachesss"]
[Result "0-1"]
[WhiteElo "2404"]
[BlackElo "2589"]
[TimeControl "180+1"]
[EndTime "11:43:32 PDT"]
[Termination "vovachesss won by checkmate"]

1. d4 {[%clk 0:02:58.3]} 1... d6 {[%clk 0:02:47.2]} 2. Nf3 {[%clk 0:02:55.3]}
2... g6 {[%clk 0:02:46.3]} 3. g3 {[%clk 0:02:51.7]} 3... Bg7 {[%clk 0:02:46.2]}
4. Bg2 {[%clk 0:02:52.1]} 4... Nf6 {[%clk 0:02:44.7]} 5. O-O {[%clk 0:02:51.6]}
5... O-O {[%clk 0:02:44.7]} 6. c4 {[%clk 0:02:50.5]} 6... c6 {[%clk 0:02:42.4]}
7. Nc3 {[%clk 0:02:49.3]} 7... Qc7 {[%clk 0:02:42.3]} 8. Qc2 {[%clk 0:02:47.9]}
8... e5 {[%clk 0:02:41.1]} 9. Rd1 {[%clk 0:02:41.3]} 9... Bg4 {[%clk 0:02:35.5]}
10. e3 {[%clk 0:02:10.2]} 10... Re8 {[%clk 0:02:32.6]} 11. h3 {[%clk 0:02:09.6]}
11... Bf5 {[%clk 0:02:28.2]} 12. e4 {[%clk 0:01:53.8]} 12... exd4 {[%clk
0:02:08.8]} 13. Nxd4 {[%clk 0:01:49.7]} 13... Bc8 {[%clk 0:02:05.4]} 14. Be3
{[%clk 0:01:38.3]} 14... Nbd7 {[%clk 0:02:05.2]} 15. Rac1 {[%clk 0:01:38]} 15...
a5 {[%clk 0:02:04.5]} 16. a3 {[%clk 0:01:38.6]} 16... Nc5 {[%clk 0:01:55.7]} 17.
b4 {[%clk 0:01:37.8]} 17... axb4 {[%clk 0:01:55.8]} 18. axb4 {[%clk 0:01:38.4]}
18... Na6 {[%clk 0:01:56.1]} 19. Qb3 {[%clk 0:01:33.6]} 19... h5 {[%clk
0:01:40.1]} 20. Bf4 {[%clk 0:01:31.7]} 20... Nd7 {[%clk 0:01:35.2]} 21. Ncb5
{[%clk 0:00:41]} 21... cxb5 {[%clk 0:01:31.1]} 22. Nxb5 {[%clk 0:00:41.9]} 22...
Qd8 {[%clk 0:01:20.7]} 23. Nxd6 {[%clk 0:00:39.5]} 23... Re6 {[%clk 0:01:19.7]}
24. c5 {[%clk 0:00:37.5]} 24... Qe7 {[%clk 0:01:15.2]} 25. h4 {[%clk 0:00:34.6]}
25... Ne5 {[%clk 0:01:08.9]} 26. Bh3 {[%clk 0:00:24.4]} 26... Ng4 {[%clk
0:00:55.2]} 27. f3 {[%clk 0:00:24.8]} 27... Ne5 {[%clk 0:00:29.9]} 28. Kg2
{[%clk 0:00:18]} 28... Nc7 {[%clk 0:00:25.1]} 29. Bxe6 {[%clk 0:00:15.7]} 29...
Bxe6 {[%clk 0:00:21.4]} 30. Qe3 {[%clk 0:00:15]} 30... Na6 {[%clk 0:00:20]} 31.
Qd2 {[%clk 0:00:12.5]} 31... Rd8 {[%clk 0:00:15.7]} 32. Rc2 {[%clk 0:00:11.5]}
32... Nc4 {[%clk 0:00:15.1]} 33. Qe1 {[%clk 0:00:08.1]} 33... Na3 {[%clk
0:00:09.7]} 34. Rcd2 {[%clk 0:00:06.9]} 34... Nxb4 {[%clk 0:00:08.8]} 35. Kh1
{[%clk 0:00:04.1]} 35... Nbc2 {[%clk 0:00:07.6]} 36. Qf2 {[%clk 0:00:03.6]}
36... Bb3 {[%clk 0:00:07.1]} 37. Nf5 {[%clk 0:00:02.6]} 37... gxf5 {[%clk
0:00:04.7]} 38. Rxd8+ {[%clk 0:00:03.2]} 38... Kh7 {[%clk 0:00:05.5]} 39. R1d7
{[%clk 0:00:03.7]} 39... Qe6 {[%clk 0:00:04.1]} 40. Qd2 {[%clk 0:00:03.5]} 40...
fxe4 {[%clk 0:00:03.5]} 41. Kh2 {[%clk 0:00:02.2]} 41... exf3 {[%clk 0:00:03.1]}
42. Be3 {[%clk 0:00:01.2]} 42... Bc4 {[%clk 0:00:02.1]} 43. Rd6 {[%clk
0:00:02.1]} 43... Qf5 {[%clk 0:00:02.2]} 44. Rh6+ {[%clk 0:00:02]} 44... Bxh6
{[%clk 0:00:02.4]} 45. Qc3 {[%clk 0:00:02.5]} 45... Be6 {[%clk 0:00:03.2]} 46.
Rh8+ {[%clk 0:00:02.8]} 46... Kg6 {[%clk 0:00:03.8]} 47. Bf4 {[%clk 0:00:03.4]}
47... Qh3+ {[%clk 0:00:04]} 48. Kg1 {[%clk 0:00:02.7]} 48... Qg2# {[%clk
0:00:04.9]} 0-1

[Event "*** Titled Tuesday Blitz"]
[Site "Chess.com"]
[Date "2020.04.14"]
[Round "9"]
[White "Rinas_Oleg"]
[Black "Cuchulin"]
[Result "0-1"]
[WhiteElo "2236"]
[BlackElo "2146"]
[TimeControl "180+1"]
[EndTime "11:43:35 PDT"]
[Termination "Cuchulin won on time"]

1. e4 {[%clk 0:02:59.5]} 1... c5 {[%clk 0:02:59.7]} 2. Nf3 {[%clk 0:02:57.6]}
2... Nc6 {[%clk 0:03:00.2]} 3. d4 {[%clk 0:02:56.1]} 3... cxd4 {[%clk
0:03:01.1]} 4. Nxd4 {[%clk 0:02:55.3]} 4... g6 {[%clk 0:03:01.7]} 5. Nc3 {[%clk
0:02:52.4]} 5... Bg7 {[%clk 0:03:02.3]} 6. Be3 {[%clk 0:02:50.6]} 6... Nf6
{[%clk 0:03:02.8]} 7. Bc4 {[%clk 0:02:47.8]} 7... O-O {[%clk 0:03:03.1]} 8. Bb3
{[%clk 0:02:44.1]} 8... Ng4 {[%clk 0:03:03]} 9. Nxc6 {[%clk 0:02:27.9]} 9...
Nxe3 {[%clk 0:03:02.3]} 10. Nxd8 {[%clk 0:02:19]} 10... Nxd1 {[%clk 0:03:01.9]}
11. Rxd1 {[%clk 0:02:17.5]} 11... Bxc3+ {[%clk 0:02:55.5]} 12. bxc3 {[%clk
0:02:15]} 12... Rxd8 {[%clk 0:02:56]} 13. e5 {[%clk 0:02:11]} 13... b6 {[%clk
0:02:53]} 14. O-O {[%clk 0:02:01.7]} 14... Ba6 {[%clk 0:02:42.4]} 15. Rfe1
{[%clk 0:01:58.6]} 15... Rac8 {[%clk 0:02:42.3]} 16. Re3 {[%clk 0:01:56.1]}
16... Kf8 {[%clk 0:02:08.1]} 17. Rd4 {[%clk 0:01:53.7]} 17... d6 {[%clk
0:02:04.4]} 18. Rf4 {[%clk 0:01:36]} 18... f5 {[%clk 0:01:28.6]} 19. exf6 {[%clk
0:01:33.1]} 19... e5 {[%clk 0:01:28.6]} 20. Ra4 {[%clk 0:01:27.4]} 20... Bb5
{[%clk 0:01:17]} 21. Rxa7 {[%clk 0:01:24.5]} 21... Rd7 {[%clk 0:01:13.2]} 22.
Rxd7 {[%clk 0:01:11.6]} 22... Bxd7 {[%clk 0:01:14.1]} 23. Rd3 {[%clk 0:01:10.9]}
23... Rc6 {[%clk 0:00:58.2]} 24. Bd5 {[%clk 0:01:06.1]} 24... Rc5 {[%clk
0:00:54.7]} 25. Bf3 {[%clk 0:00:59.2]} 25... Bf5 {[%clk 0:00:47.7]} 26. Rxd6
{[%clk 0:00:56.1]} 26... Rxc3 {[%clk 0:00:47.7]} 27. Bd5 {[%clk 0:00:50.7]}
27... Rc8 {[%clk 0:00:38.2]} 28. c4 {[%clk 0:00:45.9]} 28... b5 {[%clk
0:00:37.5]} 29. c5 {[%clk 0:00:40.6]} 29... g5 {[%clk 0:00:17.5]} 30. c6 {[%clk
0:00:35.8]} 30... Bg6 {[%clk 0:00:16.2]} 31. h3 {[%clk 0:00:29.5]} 31... Bf7
{[%clk 0:00:16]} 32. Bxf7 {[%clk 0:00:19]} 32... Kxf7 {[%clk 0:00:16.9]} 33. Kh2
{[%clk 0:00:18.5]} 33... Rc7 {[%clk 0:00:15.8]} 34. Kg3 {[%clk 0:00:17.7]} 34...
Rc8 {[%clk 0:00:14.6]} 35. Kg4 {[%clk 0:00:16.7]} 35... Kg6 {[%clk 0:00:14.7]}
36. h4 {[%clk 0:00:15.4]} 36... h5+ {[%clk 0:00:14]} 37. Kf3 {[%clk 0:00:14.7]}
37... Kf5 {[%clk 0:00:11.3]} 38. hxg5 {[%clk 0:00:13.2]} 38... Kxg5 {[%clk
0:00:11.6]} 39. Ke4 {[%clk 0:00:11.2]} 39... Ra8 {[%clk 0:00:08.2]} 40. Kxe5
{[%clk 0:00:09.8]} 40... Rxa2 {[%clk 0:00:08.1]} 41. f7 {[%clk 0:00:05.5]} 41...
Re2+ {[%clk 0:00:06.1]} 42. Kd5 {[%clk 0:00:04.4]} 42... Rxf2 {[%clk 0:00:05.9]}
43. Ke6 {[%clk 0:00:02.7]} 43... Re2+ {[%clk 0:00:02.7]} 44. Kd7 {[%clk
0:00:01.9]} 44... Rf2 {[%clk 0:00:02.9]} 45. Ke7 {[%clk 0:00:01.1]} 45... Re2+
{[%clk 0:00:02.8]} 0-1